[Event "Early-Titled-Tuesday-Blitz-February-20-2024"]
[Site "Chess.com"]
[Date "2024.02.20"]
[Round "9"]
[White "wqws"]
[Black "Chessmissile07"]
[Result "0-1"]
[WhiteElo "2674"]
[BlackElo "2879"]
[TimeControl "180+1"]
[EndTime "9:47:50 PST"]
[Termination "Chessmissile07 won by resignation"]

1. e4 {[%clk 0:02:59.6]} 1... a6 {[%clk 0:02:53]} 2. d4 {[%clk 0:02:59.3]} 2...
e6 {[%clk 0:02:52.9]} 3. Nf3 {[%clk 0:02:59.3]} 3... d5 {[%clk 0:02:52.1]} 4.
Nc3 {[%clk 0:02:56.8]} 4... Nf6 {[%clk 0:02:47.6]} 5. Bd3 {[%clk 0:02:55.6]}
5... Bb4 {[%clk 0:02:31.3]} 6. e5 {[%clk 0:02:53.7]} 6... Ne4 {[%clk 0:02:26.7]}
7. O-O {[%clk 0:02:49.1]} 7... Nxc3 {[%clk 0:02:22.4]} 8. bxc3 {[%clk
0:02:49.1]} 8... Be7 {[%clk 0:02:18.7]} 9. Bf4 {[%clk 0:02:32]} 9... c5 {[%clk
0:02:18.6]} 10. dxc5 {[%clk 0:02:31.4]} 10... Nd7 {[%clk 0:02:16.4]} 11. Nd4
{[%clk 0:02:27.4]} 11... Nxc5 {[%clk 0:02:16.2]} 12. Qg4 {[%clk 0:02:27.2]}
12... g6 {[%clk 0:02:14.3]} 13. Rad1 {[%clk 0:02:22.2]} 13... Bd7 {[%clk
0:01:58.2]} 14. c4 {[%clk 0:02:19.9]} 14... Nxd3 {[%clk 0:01:58.1]} 15. cxd3
{[%clk 0:02:12.8]} 15... dxc4 {[%clk 0:01:51.1]} 16. dxc4 {[%clk 0:02:12.8]}
16... Qc7 {[%clk 0:01:51.7]} 17. Bg5 {[%clk 0:02:06.5]} 17... h5 {[%clk
0:01:51.1]} 18. Qh4 {[%clk 0:02:06.1]} 18... Bxg5 {[%clk 0:01:29.4]} 19. Qxg5
{[%clk 0:02:07]} 19... Qd8 {[%clk 0:01:26.7]} 20. Nxe6 {[%clk 0:01:56.8]} 20...
Qxg5 {[%clk 0:01:07]} 21. Nxg5 {[%clk 0:01:56.6]} 21... Bc6 {[%clk 0:00:46.6]}
22. f4 {[%clk 0:01:35.4]} 22... O-O {[%clk 0:00:19.4]} 23. f5 {[%clk 0:01:31.3]}
23... Rae8 {[%clk 0:00:20]} 24. e6 {[%clk 0:01:28.9]} 24... f6 {[%clk
0:00:19.1]} 25. Nf7 {[%clk 0:01:26.5]} 25... gxf5 {[%clk 0:00:16.8]} 26. Nh6+
{[%clk 0:01:26.6]} 26... Kh7 {[%clk 0:00:17.3]} 27. Nxf5 {[%clk 0:01:26]} 27...
Rxe6 {[%clk 0:00:17.9]} 28. Nd4 {[%clk 0:01:23.9]} 28... Re4 {[%clk 0:00:14.5]}
29. c5 {[%clk 0:01:20.6]} 29... Ba4 {[%clk 0:00:09.5]} 30. Nb3 {[%clk
0:01:20.8]} 30... Bxb3 {[%clk 0:00:08.4]} 31. axb3 {[%clk 0:01:21.7]} 31... Rf7
{[%clk 0:00:08.8]} 32. Rd5 {[%clk 0:01:20.3]} 32... Kg6 {[%clk 0:00:08.8]} 33.
Rfd1 {[%clk 0:01:17.1]} 33... Re5 {[%clk 0:00:08.7]} 34. b4 {[%clk 0:01:14.4]}
34... Rxd5 {[%clk 0:00:07.9]} 35. Rxd5 {[%clk 0:01:15.3]} 35... Re7 {[%clk
0:00:08]} 36. Kf2 {[%clk 0:01:15.8]} 36... Re4 {[%clk 0:00:07.7]} 37. c6 {[%clk
0:00:54.9]} 37... bxc6 {[%clk 0:00:07.7]} 38. Rc5 {[%clk 0:00:55]} 38... Rxb4
{[%clk 0:00:08]} 39. Rxc6 {[%clk 0:00:55.5]} 39... a5 {[%clk 0:00:08.3]} 40. Rc5
{[%clk 0:00:53.6]} 40... a4 {[%clk 0:00:07.1]} 41. Ra5 {[%clk 0:00:53.8]} 41...
Rb2+ {[%clk 0:00:07.4]} 42. Kf3 {[%clk 0:00:53.1]} 42... Ra2 {[%clk 0:00:08]}
43. h4 {[%clk 0:00:50.5]} 43... a3 {[%clk 0:00:07.5]} 44. g4 {[%clk 0:00:47.4]}
44... hxg4+ {[%clk 0:00:05.9]} 45. Kxg4 {[%clk 0:00:48.3]} 45... Ra1 {[%clk
0:00:06.3]} 46. Kg3 {[%clk 0:00:45.1]} 46... a2 {[%clk 0:00:06.5]} 47. Kg2
{[%clk 0:00:42.2]} 47... f5 {[%clk 0:00:06.9]} 48. h5+ {[%clk 0:00:41.5]} 48...
Kh6 {[%clk 0:00:07.2]} 49. Kh2 {[%clk 0:00:23.4]} 49... f4 {[%clk 0:00:07.4]}
50. Kg2 {[%clk 0:00:22.8]} 50... f3+ {[%clk 0:00:07.6]} 51. Kxf3 {[%clk
0:00:21.7]} 51... Rf1+ {[%clk 0:00:07]} 52. Kg2 {[%clk 0:00:22.1]} 52... a1=Q
{[%clk 0:00:07.9]} 0-1

[Event "Early-Titled-Tuesday-Blitz-February-20-2024"]
[Site "Chess.com"]
[Date "2024.02.20"]
[Round "9"]
[White "Witik"]
[Black "Boundless_Strike"]
[Result "1-0"]
[WhiteElo "2783"]
[BlackElo "2633"]
[TimeControl "180+1"]
[EndTime "9:47:52 PST"]
[Termination "Witik won on time"]

1. d4 {[%clk 0:02:58.6]} 1... e5 {[%clk 0:02:38.6]} 2. c3 {[%clk 0:02:47.3]}
2... d6 {[%clk 0:02:34.7]} 3. e4 {[%clk 0:02:44.1]} 3... Nf6 {[%clk 0:02:23.3]}
4. Bd3 {[%clk 0:02:42]} 4... d5 {[%clk 0:02:03]} 5. dxe5 {[%clk 0:02:24.8]} 5...
Nxe4 {[%clk 0:02:01.1]} 6. Bxe4 {[%clk 0:02:18.4]} 6... dxe4 {[%clk 0:01:57.9]}
7. Qxd8+ {[%clk 0:02:05.7]} 7... Kxd8 {[%clk 0:01:57.4]} 8. Nd2 {[%clk
0:02:04.9]} 8... Nc6 {[%clk 0:01:52.9]} 9. Nxe4 {[%clk 0:01:52.4]} 9... Nxe5
{[%clk 0:01:52.9]} 10. Bg5+ {[%clk 0:01:51.6]} 10... Ke8 {[%clk 0:01:14.1]} 11.
O-O-O {[%clk 0:01:50.5]} 11... f6 {[%clk 0:01:09.2]} 12. Bf4 {[%clk 0:01:41.7]}
12... Bf5 {[%clk 0:01:03.1]} 13. Bxe5 {[%clk 0:01:23.1]} 13... Bxe4 {[%clk
0:01:00]} 14. f3 {[%clk 0:01:23.4]} 14... Bg6 {[%clk 0:00:24]} 15. Bxc7 {[%clk
0:01:18.4]} 15... Bc5 {[%clk 0:00:24.2]} 16. Bf4 {[%clk 0:01:05]} 16... Kf7
{[%clk 0:00:11.3]} 17. Rd7+ {[%clk 0:00:46]} 17... Ke6 {[%clk 0:00:10.3]} 18.
Rxb7 {[%clk 0:00:36.1]} 18... Rhc8 {[%clk 0:00:06.9]} 19. Ne2 {[%clk 0:00:30]}
19... Kd5 {[%clk 0:00:07.2]} 20. Rd1+ {[%clk 0:00:25.9]} 20... Kc6 {[%clk
0:00:07.6]} 21. Rxg7 {[%clk 0:00:26.6]} 21... a5 {[%clk 0:00:06.4]} 22. Nd4+
{[%clk 0:00:22.8]} 22... Kb6 {[%clk 0:00:06.9]} 23. Ne6 {[%clk 0:00:19.1]} 23...
a4 {[%clk 0:00:03.3]} 24. Nxc5 {[%clk 0:00:18.7]} 24... Kxc5 {[%clk 0:00:04.2]}
25. Rgd7 {[%clk 0:00:08.8]} 25... Kb5 {[%clk 0:00:02]} 26. R1d5+ {[%clk
0:00:08.2]} 26... Kc4 {[%clk 0:00:02.6]} 27. Rd4+ {[%clk 0:00:08.1]} 27... Kb5
{[%clk 0:00:03.2]} 28. Rb4+ {[%clk 0:00:05.1]} 28... Kc5 {[%clk 0:00:02.8]} 29.
a3 {[%clk 0:00:02.6]} 29... Kc6 {[%clk 0:00:01.9]} 30. Rd6+ {[%clk 0:00:02.8]}
30... Kc5 {[%clk 0:00:02.5]} 31. Rxf6 {[%clk 0:00:03.4]} 31... Re8 {[%clk
0:00:02.4]} 32. Bd6+ {[%clk 0:00:01.7]} 32... Kd5 {[%clk 0:00:02.5]} 33. Rd4+
{[%clk 0:00:02.4]} 33... Kc6 {[%clk 0:00:03]} 34. Bf4+ {[%clk 0:00:02.8]} 34...
Kb5 {[%clk 0:00:03.5]} 35. Bd2 {[%clk 0:00:02.6]} 35... Rad8 {[%clk 0:00:02.7]}
36. Rxd8 {[%clk 0:00:02.5]} 36... Rxd8 {[%clk 0:00:03.6]} 37. Rf4 {[%clk
0:00:02.7]} 37... Re8 {[%clk 0:00:03.5]} 38. g4 {[%clk 0:00:02.5]} 38... Re2
{[%clk 0:00:03.2]} 39. c4+ {[%clk 0:00:03.1]} 39... Kc5 {[%clk 0:00:03]} 40.
Bb4+ {[%clk 0:00:02.1]} 40... Kc6 {[%clk 0:00:02.6]} 41. Bc3 {[%clk 0:00:02.5]}
41... Rg2 {[%clk 0:00:02.4]} 42. h4 {[%clk 0:00:02.7]} 42... Bd3 {[%clk
0:00:01.9]} 43. Rd4 {[%clk 0:00:02.7]} 43... Bc2 {[%clk 0:00:02.3]} 44. Rd2
{[%clk 0:00:02.7]} 1-0

[Event "Early-Titled-Tuesday-Blitz-February-20-2024"]
[Site "Chess.com"]
[Date "2024.02.20"]
[Round "9"]
[White "sewlins"]
[Black "pr1105"]
[Result "1-0"]
[WhiteElo "2149"]
[BlackElo "2356"]
[TimeControl "180+1"]
[EndTime "9:48:01 PST"]
[Termination "sewlins won on time"]

1. e4 {[%clk 0:03:00.9]} 1... e5 {[%clk 0:02:56.5]} 2. Nf3 {[%clk 0:03:00.7]}
2... Nc6 {[%clk 0:02:56.6]} 3. Bb5 {[%clk 0:03:01.2]} 3... Nf6 {[%clk
0:02:56.7]} 4. O-O {[%clk 0:03:00.5]} 4... Nxe4 {[%clk 0:02:57.1]} 5. Re1 {[%clk
0:02:59.7]} 5... Nd6 {[%clk 0:02:57.6]} 6. Nxe5 {[%clk 0:02:52.7]} 6... Be7
{[%clk 0:02:56.3]} 7. Bf1 {[%clk 0:02:48.6]} 7... O-O {[%clk 0:02:38.7]} 8. d4
{[%clk 0:02:39.2]} 8... Nf5 {[%clk 0:02:36.9]} 9. c3 {[%clk 0:02:31.7]} 9...
Nxe5 {[%clk 0:02:24.5]} 10. Rxe5 {[%clk 0:02:25.5]} 10... d5 {[%clk 0:02:24.4]}
11. Bd3 {[%clk 0:02:24]} 11... g6 {[%clk 0:02:17.5]} 12. Qf3 {[%clk 0:02:12.9]}
12... c6 {[%clk 0:01:59.9]} 13. Nd2 {[%clk 0:02:08.6]} 13... Bd6 {[%clk
0:01:58.5]} 14. Re1 {[%clk 0:02:04.9]} 14... Re8 {[%clk 0:01:54.1]} 15. Rxe8+
{[%clk 0:02:01.4]} 15... Qxe8 {[%clk 0:01:55]} 16. Nf1 {[%clk 0:02:01.9]} 16...
Nh4 {[%clk 0:01:34.8]} 17. Qf6 {[%clk 0:01:44.4]} 17... Be7 {[%clk 0:01:29.6]}
18. Qf4 {[%clk 0:01:42.9]} 18... Bf5 {[%clk 0:01:26.8]} 19. Be2 {[%clk
0:01:31.3]} 19... Be6 {[%clk 0:01:23]} 20. Ng3 {[%clk 0:01:22.9]} 20... Nf5
{[%clk 0:01:18.6]} 21. Bd2 {[%clk 0:01:15.8]} 21... Ng7 {[%clk 0:01:13.6]} 22.
Re1 {[%clk 0:01:07.5]} 22... Qd7 {[%clk 0:01:10.5]} 23. h3 {[%clk 0:01:01.5]}
23... Re8 {[%clk 0:01:07.6]} 24. Bd3 {[%clk 0:00:59.3]} 24... a5 {[%clk
0:01:05.2]} 25. Qf3 {[%clk 0:00:53.5]} 25... h5 {[%clk 0:01:00.7]} 26. Bf4
{[%clk 0:00:52.4]} 26... h4 {[%clk 0:00:59]} 27. Nf1 {[%clk 0:00:52.4]} 27...
Nh5 {[%clk 0:00:59.1]} 28. Be5 {[%clk 0:00:50.3]} 28... Bf5 {[%clk 0:00:52.5]}
29. Bxf5 {[%clk 0:00:48.3]} 29... Qxf5 {[%clk 0:00:53.4]} 30. Qxf5 {[%clk
0:00:48.7]} 30... gxf5 {[%clk 0:00:50.2]} 31. Ne3 {[%clk 0:00:47.7]} 31... f6
{[%clk 0:00:40.4]} 32. Bc7 {[%clk 0:00:42.3]} 32... Bf8 {[%clk 0:00:29]} 33. Kf1
{[%clk 0:00:42.7]} 33... Ng7 {[%clk 0:00:21.1]} 34. Bxa5 {[%clk 0:00:39.1]}
34... Ra8 {[%clk 0:00:19]} 35. b4 {[%clk 0:00:38]} 35... b6 {[%clk 0:00:18.1]}
36. Bxb6 {[%clk 0:00:38.4]} 36... Rxa2 {[%clk 0:00:19]} 37. b5 {[%clk
0:00:32.9]} 37... f4 {[%clk 0:00:18.1]} 38. bxc6 {[%clk 0:00:27.9]} 38... fxe3
{[%clk 0:00:18.5]} 39. c7 {[%clk 0:00:27.7]} 39... Ra8 {[%clk 0:00:16.6]} 40.
Rxe3 {[%clk 0:00:23.2]} 40... Rc8 {[%clk 0:00:14.8]} 41. c4 {[%clk 0:00:17.3]}
41... dxc4 {[%clk 0:00:13.2]} 42. Rc3 {[%clk 0:00:17.5]} 42... Ne6 {[%clk
0:00:09.6]} 43. Rxc4 {[%clk 0:00:18]} 43... Kf7 {[%clk 0:00:09.5]} 44. d5 {[%clk
0:00:18.4]} 44... Nxc7 {[%clk 0:00:08.4]} 45. Rxc7+ {[%clk 0:00:14.7]} 45...
Rxc7 {[%clk 0:00:08.8]} 46. Bxc7 {[%clk 0:00:15.6]} 46... Ke8 {[%clk 0:00:09.4]}
47. Ke2 {[%clk 0:00:14.3]} 47... Kd7 {[%clk 0:00:09.7]} 48. Bf4 {[%clk
0:00:11.4]} 48... Be7 {[%clk 0:00:09.3]} 49. Kf3 {[%clk 0:00:11.3]} 49... Bd8
{[%clk 0:00:09.9]} 50. Kg4 {[%clk 0:00:10.4]} 1-0

[Event "Early-Titled-Tuesday-Blitz-February-20-2024"]
[Site "Chess.com"]
[Date "2024.02.20"]
[Round "9"]
[White "JoliyRoger"]
[Black "DarZay"]
[Result "1-0"]
[WhiteElo "2514"]
[BlackElo "2305"]
[TimeControl "180+1"]
[EndTime "9:48:02 PST"]
[Termination "JoliyRoger won by checkmate"]

1. d4 {[%clk 0:02:55.1]} 1... d5 {[%clk 0:02:59.5]} 2. c4 {[%clk 0:02:53.8]}
2... e6 {[%clk 0:02:59.4]} 3. Nc3 {[%clk 0:02:54.1]} 3... Be7 {[%clk 0:02:59.4]}
4. Nf3 {[%clk 0:02:53.5]} 4... Nf6 {[%clk 0:02:59.2]} 5. e3 {[%clk 0:02:54]}
5... O-O {[%clk 0:02:59.2]} 6. b3 {[%clk 0:02:54.4]} 6... Ne4 {[%clk 0:02:56.3]}
7. Nxe4 {[%clk 0:02:53.7]} 7... dxe4 {[%clk 0:02:55.9]} 8. Nd2 {[%clk
0:02:54.6]} 8... f5 {[%clk 0:02:55.3]} 9. Be2 {[%clk 0:02:51.8]} 9... c5 {[%clk
0:02:50.6]} 10. Bb2 {[%clk 0:02:49.5]} 10... Nc6 {[%clk 0:02:49.4]} 11. dxc5
{[%clk 0:02:47.2]} 11... Bxc5 {[%clk 0:02:49]} 12. O-O {[%clk 0:02:47.6]} 12...
a5 {[%clk 0:02:42.7]} 13. Nb1 {[%clk 0:02:38.1]} 13... e5 {[%clk 0:02:41.6]} 14.
Nc3 {[%clk 0:02:30.4]} 14... Be6 {[%clk 0:02:39.5]} 15. Nd5 {[%clk 0:02:26.9]}
15... f4 {[%clk 0:02:27.4]} 16. Bg4 {[%clk 0:02:16.2]} 16... Qd7 {[%clk
0:02:21.7]} 17. Bxe6+ {[%clk 0:02:09.5]} 17... Qxe6 {[%clk 0:02:21.4]} 18. Nc7
{[%clk 0:02:04.3]} 18... Qg6 {[%clk 0:02:10.2]} 19. Nxa8 {[%clk 0:01:18.3]}
19... f3 {[%clk 0:02:09.6]} 20. g3 {[%clk 0:01:18.6]} 20... Qf5 {[%clk
0:02:03.1]} 21. Qd5+ {[%clk 0:01:14.1]} 21... Rf7 {[%clk 0:02:03]} 22. Kh1
{[%clk 0:01:14.7]} 22... Qh3 {[%clk 0:02:00.2]} 23. Rg1 {[%clk 0:01:14.5]} 23...
Bxe3 {[%clk 0:01:56.6]} 24. Raf1 {[%clk 0:01:04.9]} 24... Bd4 {[%clk 0:01:24]}
25. Bxd4 {[%clk 0:01:03.5]} 25... Nxd4 {[%clk 0:01:24.4]} 26. Qxe4 {[%clk
0:01:01.5]} 26... Ne2 {[%clk 0:01:23.6]} 27. Nb6 {[%clk 0:00:55]} 27... Rf6
{[%clk 0:00:59.7]} 28. Qd5+ {[%clk 0:00:53.4]} 28... Re6 {[%clk 0:00:53]} 29.
Nd7 {[%clk 0:00:45.9]} 29... Kh8 {[%clk 0:00:37.2]} 30. Qxf3 {[%clk 0:00:24]}
30... Nf4 {[%clk 0:00:37]} 31. Rg2 {[%clk 0:00:12.9]} 31... Rh6 {[%clk
0:00:29.3]} 32. Nc5 {[%clk 0:00:12.2]} 32... g5 {[%clk 0:00:16.5]} 33. Qxb7
{[%clk 0:00:06.5]} 33... Nxg2 {[%clk 0:00:14.1]} 34. Qxg2 {[%clk 0:00:06.4]}
34... Qg4 {[%clk 0:00:14.6]} 35. Ne4 {[%clk 0:00:05.5]} 35... Ra6 {[%clk
0:00:13.1]} 36. f3 {[%clk 0:00:05.6]} 36... Qf5 {[%clk 0:00:12.6]} 37. Qd2
{[%clk 0:00:05.7]} 37... h6 {[%clk 0:00:12]} 38. Qd8+ {[%clk 0:00:06]} 38... Kg7
{[%clk 0:00:12.1]} 39. Qd2 {[%clk 0:00:04.8]} 39... Ra7 {[%clk 0:00:11.2]} 40.
g4 {[%clk 0:00:05.3]} 40... Qe6 {[%clk 0:00:10.8]} 41. Rd1 {[%clk 0:00:04.9]}
41... Rf7 {[%clk 0:00:08.7]} 42. Kg2 {[%clk 0:00:05.1]} 42... Qb6 {[%clk
0:00:07.5]} 43. Qe2 {[%clk 0:00:05.2]} 43... Qb4 {[%clk 0:00:06.6]} 44. Ng3
{[%clk 0:00:05.3]} 44... Kg6 {[%clk 0:00:06.1]} 45. Nf5 {[%clk 0:00:05.9]} 45...
Qc3 {[%clk 0:00:05.1]} 46. Rd6+ {[%clk 0:00:06]} 46... Kh7 {[%clk 0:00:04.8]}
47. Rxh6+ {[%clk 0:00:06.1]} 47... Kg8 {[%clk 0:00:05.3]} 48. Rg6+ {[%clk
0:00:06.5]} 48... Kf8 {[%clk 0:00:04.8]} 49. Re6 {[%clk 0:00:07]} 49... Qc1
{[%clk 0:00:04.1]} 50. Rxe5 {[%clk 0:00:06.9]} 50... Rd7 {[%clk 0:00:03.1]} 51.
Re8+ {[%clk 0:00:06.9]} 51... Kf7 {[%clk 0:00:03.6]} 52. Qe6# {[%clk 0:00:07.5]}
1-0

[Event "Early-Titled-Tuesday-Blitz-February-20-2024"]
[Site "Chess.com"]
[Date "2024.02.20"]
[Round "9"]
[White "MasterKroket"]
[Black "Larina_Maria"]
[Result "1-0"]
[WhiteElo "2501"]
[BlackElo "2280"]
[TimeControl "180+1"]
[EndTime "9:48:02 PST"]
[Termination "MasterKroket won by resignation"]

1. e4 {[%clk 0:03:00.9]} 1... c6 {[%clk 0:02:59.9]} 2. d4 {[%clk 0:03:00.6]}
2... d5 {[%clk 0:02:59.4]} 3. e5 {[%clk 0:03:01.1]} 3... Bf5 {[%clk 0:02:59.1]}
4. Nf3 {[%clk 0:03:00.7]} 4... e6 {[%clk 0:02:58.8]} 5. Be2 {[%clk 0:03:01.1]}
5... Ne7 {[%clk 0:02:57.8]} 6. Nbd2 {[%clk 0:02:58.7]} 6... c5 {[%clk
0:02:56.7]} 7. dxc5 {[%clk 0:02:56.1]} 7... Nec6 {[%clk 0:02:56.7]} 8. c4 {[%clk
0:02:55.3]} 8... Bxc5 {[%clk 0:02:52.5]} 9. cxd5 {[%clk 0:02:52.2]} 9... Qxd5
{[%clk 0:02:48.3]} 10. Nc4 {[%clk 0:02:43.4]} 10... Qxd1+ {[%clk 0:02:46.8]} 11.
Bxd1 {[%clk 0:02:43]} 11... Ke7 {[%clk 0:02:27.3]} 12. a3 {[%clk 0:02:40.1]}
12... b5 {[%clk 0:02:26.7]} 13. Be3 {[%clk 0:02:37]} 13... Bxe3 {[%clk 0:02:10]}
14. Nxe3 {[%clk 0:02:37.9]} 14... Be4 {[%clk 0:02:06.1]} 15. Nd2 {[%clk
0:02:38]} 15... Bg6 {[%clk 0:02:02.6]} 16. f4 {[%clk 0:02:22.6]} 16... Nd4
{[%clk 0:02:01.9]} 17. Nb3 {[%clk 0:02:10.6]} 17... Nbc6 {[%clk 0:02:00.7]} 18.
Rc1 {[%clk 0:02:09.3]} 18... Rac8 {[%clk 0:01:57.3]} 19. Nc5 {[%clk 0:02:05.3]}
19... f6 {[%clk 0:01:43]} 20. exf6+ {[%clk 0:02:00]} 20... gxf6 {[%clk
0:01:43.9]} 21. O-O {[%clk 0:01:59.1]} 21... Rhd8 {[%clk 0:01:10]} 22. Bg4
{[%clk 0:01:53.6]} 22... h5 {[%clk 0:01:00.5]} 23. Bd1 {[%clk 0:01:47.3]} 23...
Nf5 {[%clk 0:00:50.7]} 24. Nxf5+ {[%clk 0:01:45.4]} 24... Bxf5 {[%clk
0:00:51.4]} 25. Bxh5 {[%clk 0:01:45.2]} 25... Rd2 {[%clk 0:00:50.7]} 26. Rfd1
{[%clk 0:01:37]} 26... Rcd8 {[%clk 0:00:46.4]} 27. Rxd2 {[%clk 0:01:36.2]} 27...
Rxd2 {[%clk 0:00:47.2]} 28. Bf3 {[%clk 0:01:32.9]} 28... Nd4 {[%clk 0:00:45.8]}
29. b3 {[%clk 0:01:15.8]} 29... Nxf3+ {[%clk 0:00:45]} 30. gxf3 {[%clk
0:01:15.4]} 30... Bh3 {[%clk 0:00:44.3]} 31. Ne4 {[%clk 0:01:07.2]} 31... Rg2+
{[%clk 0:00:43.7]} 32. Kh1 {[%clk 0:01:07.6]} 32... Rb2 {[%clk 0:00:42.1]} 33.
b4 {[%clk 0:01:04.7]} 33... Bg2+ {[%clk 0:00:40.7]} 34. Kg1 {[%clk 0:01:03.5]}
34... Bxf3 {[%clk 0:00:41.6]} 35. Ng3 {[%clk 0:00:49.7]} 35... Rg2+ {[%clk
0:00:40]} 36. Kf1 {[%clk 0:00:49.3]} 36... Rxh2 {[%clk 0:00:38.7]} 37. Rc7+
{[%clk 0:00:49.3]} 37... Kd6 {[%clk 0:00:38.6]} 38. Rxa7 {[%clk 0:00:49.4]}
38... Ra2 {[%clk 0:00:32.4]} 39. Ra5 {[%clk 0:00:42]} 39... Bc6 {[%clk
0:00:28.8]} 40. Ne2 {[%clk 0:00:39.6]} 40... Rd2 {[%clk 0:00:17.7]} 41. Ke1
{[%clk 0:00:39.1]} 41... Rd3 {[%clk 0:00:15.5]} 42. Ra6 {[%clk 0:00:35.4]} 42...
Kc7 {[%clk 0:00:12]} 43. Nc1 {[%clk 0:00:25.6]} 43... Re3+ {[%clk 0:00:11.5]}
44. Kd2 {[%clk 0:00:25.9]} 44... Rf3 {[%clk 0:00:10.9]} 45. Nd3 {[%clk
0:00:25.9]} 45... Kb7 {[%clk 0:00:08.8]} 46. Nc5+ {[%clk 0:00:24.9]} 46... Kc7
{[%clk 0:00:09.2]} 47. Nxe6+ {[%clk 0:00:24.5]} 47... Kd6 {[%clk 0:00:09.5]} 48.
Rxc6+ {[%clk 0:00:24.2]} 48... Kxc6 {[%clk 0:00:08.8]} 49. Nd4+ {[%clk
0:00:24.5]} 49... Kd5 {[%clk 0:00:09.7]} 50. Nxf3 {[%clk 0:00:25.1]} 50... Ke4
{[%clk 0:00:09.2]} 51. Ne1 {[%clk 0:00:22.9]} 51... Kxf4 {[%clk 0:00:09.2]} 52.
Kd3 {[%clk 0:00:23.6]} 52... Ke5 {[%clk 0:00:09.2]} 53. Nf3+ {[%clk 0:00:22.4]}
53... Kd5 {[%clk 0:00:09.2]} 54. Nd4 {[%clk 0:00:22.7]} 54... f5 {[%clk
0:00:08.5]} 55. Nxb5 {[%clk 0:00:23]} 55... f4 {[%clk 0:00:08.4]} 56. Nc3+
{[%clk 0:00:23.3]} 1-0

[Event "Early-Titled-Tuesday-Blitz-February-20-2024"]
[Site "Chess.com"]
[Date "2024.02.20"]
[Round "9"]
[White "vovachesss"]
[Black "Iskusnyh"]
[Result "1/2-1/2"]
[WhiteElo "2802"]
[BlackElo "2678"]
[TimeControl "180+1"]
[EndTime "9:48:03 PST"]
[Termination "Game drawn by agreement"]

1. e4 {[%clk 0:03:00.9]} 1... e6 {[%clk 0:02:59.3]} 2. d4 {[%clk 0:03:01.5]}
2... d5 {[%clk 0:02:59]} 3. Nc3 {[%clk 0:03:02.4]} 3... Nf6 {[%clk 0:02:58.1]}
4. Bg5 {[%clk 0:03:01.8]} 4... dxe4 {[%clk 0:02:57.4]} 5. Nxe4 {[%clk
0:03:02.7]} 5... Nbd7 {[%clk 0:02:55.6]} 6. Nf3 {[%clk 0:03:01.2]} 6... h6
{[%clk 0:02:55.1]} 7. Bxf6 {[%clk 0:02:50.9]} 7... Nxf6 {[%clk 0:02:56]} 8. Bd3
{[%clk 0:02:51.8]} 8... Nxe4 {[%clk 0:02:52.8]} 9. Bxe4 {[%clk 0:02:51.9]} 9...
c5 {[%clk 0:02:53.2]} 10. Qe2 {[%clk 0:02:35.7]} 10... Qa5+ {[%clk 0:02:52.7]}
11. c3 {[%clk 0:02:30.7]} 11... Be7 {[%clk 0:02:52.1]} 12. O-O {[%clk
0:02:26.4]} 12... O-O {[%clk 0:02:51.4]} 13. Rfd1 {[%clk 0:02:27]} 13... cxd4
{[%clk 0:02:45.9]} 14. Nxd4 {[%clk 0:02:21.7]} 14... Bf6 {[%clk 0:02:32.4]} 15.
Rd2 {[%clk 0:02:10.6]} 15... Rd8 {[%clk 0:01:55.6]} 16. Nb3 {[%clk 0:01:39.6]}
16... Rxd2 {[%clk 0:01:40.7]} 17. Qxd2 {[%clk 0:01:39.8]} 17... Qc7 {[%clk
0:01:40.8]} 18. Rd1 {[%clk 0:01:37.4]} 18... Bd7 {[%clk 0:01:28.6]} 19. g3
{[%clk 0:00:18.2]} 19... Rd8 {[%clk 0:01:19.4]} 20. Qe3 {[%clk 0:00:17.3]} 20...
b6 {[%clk 0:01:17.4]} 21. Rd3 {[%clk 0:00:09.4]} 21... Bb5 {[%clk 0:01:11.6]}
22. Rxd8+ {[%clk 0:00:08.7]} 22... Qxd8 {[%clk 0:01:12.5]} 23. Bf3 {[%clk
0:00:08]} 23... Bc4 {[%clk 0:01:02.1]} 24. h4 {[%clk 0:00:07.6]} 24... a5 {[%clk
0:00:55.8]} 25. Kg2 {[%clk 0:00:06.6]} 25... a4 {[%clk 0:00:51.8]} 26. Nc1
{[%clk 0:00:07.2]} 26... g5 {[%clk 0:00:51.3]} 27. b3 {[%clk 0:00:07.5]} 27...
Bb5 {[%clk 0:00:47.5]} 28. c4 {[%clk 0:00:05.6]} 28... Be8 {[%clk 0:00:41.4]}
29. h5 {[%clk 0:00:05.3]} 29... Qd4 {[%clk 0:00:36.7]} 30. Qxd4 {[%clk
0:00:03.2]} 30... Bxd4 {[%clk 0:00:36.5]} 31. Ne2 {[%clk 0:00:04.1]} 31... Be5
{[%clk 0:00:35]} 32. g4 {[%clk 0:00:03.7]} 32... f5 {[%clk 0:00:34.6]} 33. Ng3
{[%clk 0:00:03.3]} 33... Bd7 {[%clk 0:00:34.3]} 34. Bb7 {[%clk 0:00:02.3]} 34...
Kf7 {[%clk 0:00:32]} 35. gxf5 {[%clk 0:00:02]} 35... exf5 {[%clk 0:00:31.6]} 36.
Bd5+ {[%clk 0:00:02.6]} 36... Kf6 {[%clk 0:00:31.8]} 37. Ne2 {[%clk 0:00:02.3]}
37... Be8 {[%clk 0:00:27.9]} 38. f4 {[%clk 0:00:02.8]} 38... gxf4 {[%clk
0:00:26.7]} 39. Bf3 {[%clk 0:00:03.2]} 39... a3 {[%clk 0:00:24.4]} 40. Nc1
{[%clk 0:00:02.8]} 40... Bd4 {[%clk 0:00:18.7]} 41. Nd3 {[%clk 0:00:03.7]} 41...
Be3 {[%clk 0:00:19.3]} 42. b4 {[%clk 0:00:02.6]} 42... Bf7 {[%clk 0:00:18.6]}
43. c5 {[%clk 0:00:03.1]} 43... bxc5 {[%clk 0:00:17.4]} 44. bxc5 {[%clk
0:00:04]} 44... Bxa2 {[%clk 0:00:17.5]} 45. c6 {[%clk 0:00:04.2]} 45... Be6
{[%clk 0:00:17.5]} 46. Nb4 {[%clk 0:00:04.8]} 46... a2 {[%clk 0:00:16.5]} 47.
Nxa2 {[%clk 0:00:03.9]} 47... Bxa2 {[%clk 0:00:16.5]} 48. c7 {[%clk 0:00:04.8]}
48... Be6 {[%clk 0:00:15.3]} 49. Bb7 {[%clk 0:00:05.7]} 49... Kg5 {[%clk
0:00:15.7]} 50. c8=Q {[%clk 0:00:06.6]} 50... Bxc8 {[%clk 0:00:15.6]} 51. Bxc8
{[%clk 0:00:07.5]} 51... Kxh5 {[%clk 0:00:16.2]} 52. Bxf5 {[%clk 0:00:07.3]}
52... Kg5 {[%clk 0:00:17.1]} 53. Be4 {[%clk 0:00:07.2]} 53... h5 {[%clk
0:00:16.8]} 54. Kh1 {[%clk 0:00:07.3]} 54... Kg4 {[%clk 0:00:16.6]} 55. Bd5
{[%clk 0:00:07.8]} 55... Kg3 {[%clk 0:00:16.9]} 56. Be4 {[%clk 0:00:08.1]} 56...
h4 {[%clk 0:00:17.1]} 57. Bd5 {[%clk 0:00:06.6]} 1/2-1/2